fUST/lending_fUST_20251011
["ID","MTS","AMOUNT","RATE_DAILY","PERIOD"]
[390846279,1760177474379,-261.372512,0.00030079,30]
[390846280,1760177474388,-151.0,0.00030079,30]
[390846281,1760177474398,-261.372512,0.00030079,30]
[390846282,1760177474407,-151.0,0.00030079,30]
[390846283,1760177474416,-261.372517,0.00030079,30]
[390846284,1760177474425,-151.0,0.00030079,30]
[390846285,1760177474435,-151.0,0.00030079,30]
[390846286,1760177474443,-198.0,0.00030081,9]
[390846287,1760177474452,-261.78584438,0.00030081,9]
[390846288,1760177474544,-157.17235922,0.00030081,9]
[390846289,1760177474552,-151.0,0.00030081,9]
[390846290,1760177474561,-151.0,0.00030081,9]
[390846291,1760177474571,-151.0,0.00030081,9]
[390846292,1760177474582,-151.0,0.00030081,9]
[390846293,1760177474591,-151.0,0.00030082,30]
[390846294,1760177474600,-151.0,0.00030082,30]
[390846295,1760177474609,-292.0,0.00030082,30]
[390846296,1760177474619,-151.0,0.00030082,30]
[390846297,1760177474627,-1152613.0842321,0.00030088,20]
[390846298,1760177474672,-666.36917242,0.00030088,20]
[390846299,1760177474683,-683.88842277,0.00030088,20]
[390846300,1760177474693,-1058.23592004,0.00030088,20]
[390846301,1760177474704,-5000.0,0.00030088,20]
[390846302,1760177474720,-500.0,0.00024657,9]
[390846303,1760177474728,-1414.1,0.00030088,20]
[390846304,1760177476404,-1917.13290685,0.00030088,20]
[390846305,1760177476446,-500.0,0.00024657,9]
[390846306,1760177476474,1186.94,0.00024657,9]
[390846307,1760177476501,500.0,0.00024657,9]
[390846308,1760177476529,500.0,0.00024657,9]
[390846309,1760177476555,1186.94,0.00024657,9]
[390846310,1760177476579,500.0,0.00024657,9]
[390846311,1760177476606,500.0,0.00024657,9]
[390846312,1760177476633,151.0,0.00024657,7]
[390846313,1760177476657,4475.13,0.00024657,7]
[390846314,1760177476864,-43.630048,0.00024657,7]
[390846315,1760177476874,-500.0,0.00024657,9]
[390846316,1760177476883,-1186.94,0.00024657,9]
[390846317,1760177476892,-336.87,0.00024657,9]
[390846318,1760177476902,-500.0,0.00024657,9]
[390846319,1760177476911,-151.0,0.00024657,7]
[390846320,1760177476920,-500.0,0.00024657,9]
[390846321,1760177476930,-4518.760048,0.00024657,7]
[390846322,1760177476939,-1186.94,0.00024657,9]
[390846323,1760177476949,-500.0,0.00024657,9]
[390846324,1760177476959,-500.0,0.00024657,9]
[390846325,1760177476968,-151.0,0.00024657,7]
[390846326,1760177476978,-1186.94,0.00024657,9]
[390846327,1760177476987,-500.0,0.00024657,9]
[390846328,1760177476997,-500.0,0.00024657,9]
[390846329,1760177477006,-4518.760048,0.00024657,7]
[390846330,1760177477015,-500.0,0.00024657,9]
[390846331,1760177477024,-500.0,0.00024657,9]
[390846332,1760177477033,-1186.94,0.00024657,9]
[390846333,1760177477042,-500.0,0.00024657,9]
[390846334,1760177477051,-500.0,0.00024657,9]
[390846335,1760177477061,-500.0,0.00024657,9]
[390846336,1760177477070,-500.0,0.00024657,9]
[390846337,1760177477079,-500.0,0.00024657,9]
[390846338,1760177477088,-4518.760048,0.00024657,7]
[390846339,1760177477097,-1186.94,0.00024657,9]
[390846340,1760177477106,-602.0,0.00024657,9]
[390846341,1760177477115,-500.0,0.00024657,9]
[390846342,1760177477124,-151.0,0.000249,7]
[390846343,1760177477133,-151.0,0.000249,7]
[390846344,1760177477142,-151.0,0.0002899,30]
[390846345,1760177477151,-151.0,0.0002899,30]
[390846346,1760177477160,-143563.81236133,0.00030088,20]
[390846347,1760177477319,-500.0,0.00024657,9]
[390846348,1760177477331,-500.0,0.00024657,9]
[390846349,1760177477341,-12725.43206368,0.00030088,20]
[390846350,1760177477352,-380.00040936,0.00030088,20]
[390846351,1760177477567,5000.0,0.00024656,2]
[390846352,1760177477789,-500.0,0.00024657,9]
[390846353,1760177477798,-945.13707872,0.00024657,9]
[390846354,1760177477813,-241.80292128,0.00024657,9]
[390846355,1760177477823,-500.0,0.00024657,9]
[390846356,1760177477832,-151.0,0.00024657,7]
[390846357,1760177477842,-320.4951894,0.00024657,9]
[390846358,1760177478148,-179.5048106,0.00024657,9]
[390846359,1760177478159,-500.0,0.00024657,9]
[390846360,1760177478168,-500.0,0.00024657,9]
[390846361,1760177478177,-500.0,0.00024657,9]
[390846362,1760177478186,-1186.94,0.00024657,9]
[390846363,1760177478195,-500.0,0.00024657,9]
[390846364,1760177478204,-4518.760048,0.00024657,7]
[390846365,1760177478213,-500.0,0.00024657,9]
[390846366,1760177478222,-500.0,0.00024657,9]
[390846367,1760177478231,-151.0,0.00024657,7]
[390846368,1760177478241,-500.0,0.00024657,9]
[390846369,1760177478250,-1186.94,0.00024657,9]
[390846370,1760177478259,-500.0,0.00024657,9]
[390846371,1760177478268,-500.0,0.00024657,9]
[390846372,1760177478276,-4518.760048,0.00024657,7]
[390846373,1760177478285,-500.0,0.00024657,9]
[390846374,1760177478294,-500.0,0.00024657,9]
[390846375,1760177478304,-254.276328,0.00024657,7]
[390846376,1760177478313,-500.0,0.00024657,9]
[390846377,1760177478325,-1186.94,0.00024657,9]
[390846378,1760177478334,-500.0,0.00024657,9]
[390846379,1760177478344,-500.0,0.00024657,9]
[390846380,1760177478353,-268.46514664,0.00024657,9]
[390846381,1760177478363,-4518.760048,0.00024657,7]
[390846382,1760177478372,-500.0,0.00024657,9]
[390846383,1760177478382,-500.0,0.00024657,9]
[390846384,1760177478391,-1186.94,0.00024657,9]
[390846385,1760177478402,-500.0,0.00024657,9]
[390846386,1760177478411,-500.0,0.00024657,9]
[390846387,1760177478420,-500.0,0.00024657,9]
[390846388,1760177478429,-500.0,0.00024657,9]
[390846389,1760177478439,-4518.760048,0.00024657,7]
[390846390,1760177478448,-1186.94,0.00024657,9]
[390846391,1760177478457,-500.0,0.00024657,9]
[390846392,1760177478467,-500.0,0.00024657,9]
[390846393,1760177478476,-500.0,0.00024657,9]
[390846394,1760177478485,-500.0,0.00024657,9]
[390846395,1760177478494,-218.21331093,0.00024657,9]
[390846396,1760177478504,-1186.94,0.00024657,9]
[390846397,1760177478513,-500.0,0.00024657,9]
[390846398,1760177478523,-500.0,0.00024657,9]
[390846399,1760177478532,-500.0,0.00024657,9]
[390846400,1760177478542,-1187.02,0.00024657,9]
[390846401,1760177478551,-500.0,0.00024657,9]
[390846402,1760177478560,-4518.760048,0.00024657,7]
[390846403,1760177478569,-500.0,0.00024657,9]
[390846404,1760177478578,-500.0,0.00024657,9]
[390846405,1760177478587,-500.0,0.00024657,9]
[390846406,1760177478596,-283.56802034,0.00024657,9]
[390846407,1760177478606,-500.0,0.00024657,9]
[390846408,1760177478615,-4518.760048,0.00024657,7]
[390846409,1760177478625,-500.0,0.00024657,9]
[390846410,1760177478635,-500.0,0.00024657,9]
[390846411,1760177478644,-484.09,0.00024657,9]
[390846412,1760177478653,-3377.62,0.00024657,9]
[390846413,1760177478663,-500.0,0.00024657,9]
[390846414,1760177478673,-500.0,0.00024657,9]
[390846415,1760177478683,-500.0,0.00024657,9]
[390846416,1760177478699,-4518.760048,0.00024657,7]
[390846417,1760177478709,-942.61442802,0.00024657,9]
[390846418,1760177478731,-2435.00557198,0.00024657,9]
[390846419,1760177478808,-500.0,0.00024657,9]
[390846420,1760177478831,-500.0,0.00024657,9]
[390846421,1760177478842,-500.0,0.00024657,9]
[390846422,1760177478852,-500.0,0.00024657,9]
[390846423,1760177478862,-1299.82326049,0.00024657,9]
[390846424,1760177478874,-511.95718974,0.00024657,9]
[390846425,1760177478907,-1565.83954977,0.00024657,9]
[390846426,1760177478918,-500.0,0.00024657,9]
[390846427,1760177478928,-500.0,0.00024657,9]
[390846428,1760177478938,-421.01,0.00024657,9]
[390846429,1760177478948,-2602.15045023,0.00024657,7]
[390846430,1760177479158,500.0,0.00024656,2]
[390846431,1760177479185,500.0,0.00024656,2]
[390846432,1760177479212,500.0,0.00024656,2]
[390846433,1760177479239,186.57067157,0.00024656,2]
[390846434,1760177479262,313.42932843,0.00024656,2]
[390846435,1760177479293,500.0,0.00024656,2]
[390846436,1760177479363,500.0,0.00024656,2]
[390846437,1760177479392,500.0,0.00024656,2]
[390846438,1760177479422,500.0,0.00024656,2]
[390846439,1760177479456,500.0,0.00024656,2]
[390846440,1760177480225,500.0,0.00024656,2]
[390846441,1760177480309,456.49126562,0.00024656,2]
[390846442,1760177480346,500.0,0.00024656,2]
[390846443,1760177480375,500.0,0.00024656,2]
[390846444,1760177480402,620.0,0.00024656,2]
[390846445,1760177480431,500.0,0.00024656,2]
[390846446,1760177480544,374.8499123,0.00024656,2]
[390846447,1760177480582,500.0,0.00024656,2]
[390846448,1760177480613,525.0,0.00024656,2]
[390846449,1760177480681,425.00000001,0.00024656,2]
[390846450,1760177480822,189.52285075,0.00024656,2]
[390846451,1760177481498,500.0,0.00024656,2]
[390846452,1760177481527,500.0,0.00024656,2]
[390846453,1760177481555,500.0,0.00024656,2]
[390846454,1760177481607,500.0,0.00024656,2]
[390846455,1760177481640,95.71664289,0.00024656,2]
[390846456,1760177481660,404.28335711,0.00024656,2]
[390846457,1760177481689,500.0,0.00024656,2]
[390846458,1760177481740,500.0,0.00024656,2]
[390846459,1760177481791,500.0,0.00024656,2]
[390846460,1760177481849,500.0,0.00024656,2]
[390846461,1760177481898,600.0,0.00024656,2]
[390846462,1760177481947,500.0,0.00024656,2]
[390846463,1760177481989,500.0,0.00024656,2]
[390846464,1760177482029,300.0,0.00024656,2]
[390846465,1760177482056,500.0,0.00024656,2]
[390846466,1760177482085,500.0,0.00024656,2]
[390846467,1760177482117,500.0,0.00024656,2]
[390846468,1760177482149,500.0,0.00024656,2]
[390846469,1760177482186,500.0,0.00024656,2]
[390846470,1760177482214,500.0,0.00024656,2]
[390846471,1760177482247,300.0,0.00024656,2]
[390846472,1760177482274,500.0,0.00024656,2]
[390846473,1760177482300,250.0,0.00024656,2]
[390846474,1760177482334,500.0,0.00024656,2]
[390846475,1760177486284,1145.72664289,0.00024656,2]
[390846476,1760177486306,3854.27335711,0.00024656,2]
[390846477,1760177508882,5000.0,0.00024656,2]
[390846478,1760177516555,210.82,0.00018868,2]
[390846479,1760177516971,421.65,0.00020583,2]
[390846480,1760177517392,513.26664289,0.00022299,2]
[390846481,1760177517416,119.20335711,0.00022299,2]
[390846482,1760177517790,843.3,0.00024014,2]
[390846483,1760177531754,5000.0,0.00024656,2]
[390846484,1760177554058,4037.50664289,0.00024656,2]
[390846485,1760177554087,962.49335711,0.00024656,2]
[390846486,1760177554983,-1916.60959777,0.00024657,7]
[390846487,1760177555015,-2789.17080446,0.00024657,9]
[390846488,1760177569393,166.602,0.00024164,6]
[390846489,1760177577260,5000.0,0.00024656,2]
[390846490,1760177581181,-588.44919554,0.00024657,9]
[390846491,1760177581212,-500.0,0.00024657,9]
[390846492,1760177581242,-500.0,0.00024657,9]
[390846493,1760177581274,-151.0,0.00024657,7]
[390846494,1760177581302,-584.8917694,0.00024657,9]
[390846495,1760177581329,-500.0,0.00024657,9]
[390846496,1760177581362,-500.0,0.00024657,9]
[390846497,1760177581391,-151.0,0.00024657,7]
[390846498,1760177581420,-500.0,0.00024657,9]
[390846499,1760177583274,-4518.760048,0.00024657,7]
[390846500,1760177586714,500.0,0.00024656,2]
[390846501,1760177587068,500.0,0.00024656,2]
[390846502,1760177587181,-3377.62,0.00024657,9]
[390846503,1760177587219,-500.0,0.00024657,9]
[390846504,1760177587249,-500.0,0.00024657,9]
[390846505,1760177587281,-151.0,0.00024657,7]
[390846506,1760177587527,500.0,0.00024656,2]
[390846507,1760177587673,300.0,0.00024656,2]
[390846508,1760177588920,151.0,0.00017,2]
[390846509,1760177589238,-4518.760048,0.00024657,7]
[390846510,1760177589378,-3377.62,0.00024657,9]
[390846511,1760177589408,-500.0,0.00024657,9]
[390846512,1760177589440,-500.0,0.00024657,9]
[390846513,1760177591255,-3377.62,0.00024657,9]
[390846514,1760177593262,-5000.0,0.00024656,2]
[390846515,1760177595380,-500.0,0.00024656,2]
[390846516,1760177595412,-500.0,0.00024656,2]
[390846517,1760177595444,-500.0,0.00024656,2]
[390846518,1760177595474,-500.0,0.00024656,2]
[390846519,1760177595503,-500.0,0.00024656,2]
[390846520,1760177595535,-500.0,0.00024656,2]
[390846521,1760177595564,-500.0,0.00024656,2]
[390846522,1760177595592,-500.0,0.00024656,2]
[390846523,1760177595621,-500.0,0.00024656,2]
[390846524,1760177595657,-500.0,0.00024656,2]
[390846525,1760177596102,-500.0,0.00024656,2]
[390846526,1760177596276,-500.0,0.00024656,2]
[390846527,1760177596307,-500.0,0.00024656,2]
[390846528,1760177596336,-500.0,0.00024656,2]
[390846529,1760177596369,-500.0,0.00024656,2]
[390846530,1760177596400,-500.0,0.00024656,2]
[390846531,1760177596431,-500.0,0.00024656,2]
[390846532,1760177596461,-500.0,0.00024656,2]
[390846533,1760177596490,-500.0,0.00024656,2]
[390846534,1760177596520,-500.0,0.00024656,2]
[390846535,1760177596780,-183.99,0.00018859,2]
[390846536,1760177596809,-500.0,0.00024656,2]
[390846537,1760177596836,-500.0,0.00024656,2]
[390846538,1760177596863,-500.0,0.00024656,2]
[390846539,1760177596890,-168.45386025,0.00024656,2]
[390846540,1760177596932,367.99,0.00020573,2]
[390846541,1760177597269,551.98,0.00022287,2]
[390846542,1760177597535,735.97,0.00024002,2]
[390846543,1760177600150,4639.1822795,0.00024656,2]
[390846544,1760177600177,360.8177205,0.00024656,2]
[390846545,1760177604468,531.55080446,0.00024656,2]
[390846546,1760177612134,9107.64147504,0.00024557,2]
[390846547,1760177612158,10000.01,0.00024557,2]
[390846548,1760177612182,10000.01,0.00024557,2]
[390846549,1760177612204,10000.01,0.00024557,2]
[390846550,1760177612226,10000.01,0.00024557,2]
[390846551,1760177612253,10000.01,0.00024557,2]
[390846552,1760177612276,10000.01,0.00024557,2]
[390846553,1760177612301,10000.01,0.00024557,2]
[390846554,1760177612325,10000.01,0.00024557,2]
[390846555,1760177612352,10000.01,0.00024557,2]
[390846556,1760177637598,-5000.0,0.00024311,10]
[390846557,1760177644956,0.01,0.00024311,2]
[390846558,1760177644981,4999.99,0.00024311,2]
[390846559,1760177650404,1984.96529935,0.00018859,2]
[390846560,1760177653762,-934.4,0.00024547,3]
[390846561,1760177653829,5000.0,0.00024311,2]
[390846562,1760177653900,467.2,0.00024547,3]
[390846563,1760177664482,233.6,0.00024547,3]
[390846564,1760177665337,-300.0,0.00024556,2]
[390846565,1760177665360,-40.66504196,0.00024557,2]
[390846566,1760177669009,-396.60624955,0.00024557,2]
[390846567,1760177669373,2430.41,0.00024547,2]
[390846568,1760177669401,2569.59,0.00024547,2]
[390846569,1760177670489,-367.29885712,0.00024557,2]
[390846570,1760177672992,-321.83371149,0.00024557,2]
[390846571,1760177674347,200.75,0.00019097,2]
[390846572,1760177674794,401.5,0.00020833,2]
[390846573,1760177675011,-193.66963805,0.00024557,2]
[390846574,1760177675155,700.81,0.00024547,3]
[390846575,1760177675204,602.25,0.00022569,2]
[390846576,1760177675628,803.0,0.00024305,2]
[390846577,1760177675656,622.71447243,0.0002297,2]
[390846578,1760177677472,4099.39552757,0.00024547,2]
[390846579,1760177677497,900.60447243,0.00024547,2]
[390846580,1760177679012,-227.37395084,0.00024557,2]
[390846581,1760177681854,-366.02684716,0.00024557,2]
[390846582,1760177682100,-179.89206476,0.00023773,2]
[390846583,1760177682791,-6847.28267304,0.00024557,2]
[390846584,1760177682808,-10000.01,0.00024557,2]
[390846585,1760177682849,-10000.01,0.00024557,2]
[390846586,1760177682996,-10000.01,0.00024557,2]
[390846587,1760177683191,-10000.01,0.00024557,2]
[390846588,1760177683287,-174.29460539,0.00024557,2]
[390846589,1760177683359,-10000.01,0.00024557,2]
[390846590,1760177683511,-10000.01,0.00024557,2]
[390846591,1760177683684,-10000.01,0.00024557,2]
[390846592,1760177684184,-10000.01,0.00024557,2]
[390846593,1760177684405,-10000.01,0.00024557,2]
[390846594,1760177684558,-10000.01,0.00024557,2]
[390846595,1760177684756,-10000.01,0.00024557,2]
[390846596,1760177684907,-10000.01,0.00024557,2]
[390846597,1760177685050,-10000.01,0.00024557,2]
[390846598,1760177685280,-10000.01,0.00024557,2]
[390846599,1760177685327,-10000.01,0.00024557,2]
[390846600,1760177685492,-10000.01,0.00024557,2]
[390846601,1760177685645,-545.06,0.00024547,3]
[390846602,1760177685683,-8909.89,0.00024557,2]
[390846603,1760177686229,-10000.01,0.00024557,2]
[390846604,1760177686396,-10000.01,0.00024557,2]
[390846605,1760177686565,-10000.01,0.00024557,2]
[390846606,1760177686737,-10000.01,0.00024557,2]
[390846607,1760177686906,-10000.01,0.00024557,2]
[390846608,1760177687071,-10000.01,0.00024557,2]
[390846609,1760177687251,-10000.01,0.00024557,2]
[390846610,1760177687401,-10000.01,0.00024557,2]
[390846611,1760177687553,-10000.01,0.00024557,2]
[390846612,1760177687713,-3047.07695036,0.00024557,2]
[390846613,1760177690437,-154.39117937,0.00024594,2]
[390846614,1760177801041,12089.49235173,0.00030125,60]
[390846615,1760177853423,150.0,0.00027397,120]
[390846616,1760177902158,320.0,0.00013699,2]
[390846617,1760177902816,150.0,0.00030126,60]
[390846618,1760178025934,-262.16704335,0.00018322,10]
[390846619,1760178028988,-285.70539461,0.00018322,10]
[390846620,1760178030889,-171.16813973,0.00018322,10]
[390846621,1760178033384,-242.24576017,0.00018322,10]
[390846622,1760178034810,-345.51035046,0.00018322,10]
[390846623,1760178055266,-331.9245242,0.00018322,10]
[390846624,1760178058358,-310.4196193,0.00018322,10]
[390846625,1760178060839,-418.2827372,0.00018322,10]
[390846626,1760178100322,-389.98305648,0.00017691,2]
[390846627,1760178104484,-174.73764507,0.00017691,2]
[390846628,1760178150187,169.0,0.0002267,120]
[390846629,1760178151498,169.0,0.00023803,120]
[390846630,1760178152735,169.0,0.00024994,120]
[390846631,1760178153986,169.0,0.00026243,120]
[390846634,1760178280586,-318.0,0.0001719,10]
[390846636,1760178282828,-198.07679597,0.0001719,10]
[390846637,1760178285898,-220.52147883,0.0001719,10]
[390846639,1760178286170,5000.0,0.00017,10]
[390846641,1760178308182,5000.0,0.00017,10]
[390846642,1760178338999,165.0,0.00027397,120]
[390846645,1760178465244,5000.0,0.00017,10]
[390846646,1760178473387,5000.0,0.00017,10]
[390846647,1760178487254,188616.21244813,0.0003016,60]
[390846648,1760178490983,420.14410226,0.00010618,2]
[390846649,1760178492759,11520.34623004,0.000125,2]
[390846650,1760178499685,1006.49757666,0.00015,2]
[390846651,1760178501766,4240.98076212,0.0003016,120]
[390846652,1760178505761,20.62536464,0.0001,2]
[390846653,1760178505792,265.48691221,0.0001,2]
[390846654,1760178509866,26095.8421523,0.0002,120]
[390846655,1760178510385,686.70368449,0.0001,7]
[390846656,1760178511904,3952.97105101,0.00024108,120]
[390846657,1760178512805,71224.62085322,0.00015,2]
[390846658,1760178514351,587.69329788,0.000149,2]
[390846659,1760178514733,1000.0,0.0001,2]
[390846660,1760178516318,112881.90249867,0.00027,120]
[390846661,1760178520211,4956.19990856,0.0003016,120]
[390846662,1760178521916,260.70401695,0.00015,2]
[390846664,1760178547089,-2067.85572943,0.0001584,2]
[390846665,1760178547110,-213.23869478,0.00016,2]
[390846666,1760178547131,-5000.0,0.00016177,2]
[390846667,1760178547153,-5000.0,0.0001634,2]
[390846668,1760178547173,-486.737859,0.00016505,2]
[390846669,1760178547192,-586.5982748,0.00016826,2]
[390846670,1760178547212,-1000.0,0.00016926,2]
[390846671,1760178551127,-1200.0,0.00017363,2]
[390846672,1760178551145,-1200.0,0.00017363,2]
[390846673,1760178551165,-666.0,0.00017539,2]
[390846674,1760178551184,-300.0,0.00017787,2]
[390846675,1760178551203,-50000.0,0.00017788,2]
[390846676,1760178551224,-300.0,0.00017788,2]
[390846677,1760178551243,-300.0,0.00017788,2]
[390846678,1760178551262,-300.0,0.00017788,2]
[390846679,1760178551282,-4286.148401,0.00017789,2]
[390846680,1760178551301,-4851.201585,0.0001787,2]
[390846681,1760178551319,-5014.0,0.00018,2]
[390846682,1760178551337,-2037.6814888,0.0001824,2]
[390846683,1760178551357,-150.0,0.00018322,2]
[390846684,1760178551377,-214.4,0.00018794,2]
[390846685,1760178551397,-10334.88703125,0.00018884,2]
[390846686,1760178551416,-172.5,0.00018922,2]
[390846687,1760178551437,-300.0,0.00019261,2]
[390846688,1760178551457,-300.0,0.00019261,2]
[390846689,1760178551479,-300.0,0.00019261,2]
[390846690,1760178551498,-300.0,0.00019261,2]
[390846691,1760178551518,-300.0,0.00019261,2]
[390846692,1760178551537,-300.0,0.00019261,2]
[390846693,1760178551558,-300.0,0.00019261,2]
[390846694,1760178551578,-300.0,0.00019261,2]
[390846695,1760178551598,-300.0,0.00019261,2]
[390846696,1760178551618,-300.0,0.00019261,2]
[390846697,1760178551641,-300.0,0.00019261,2]
[390846698,1760178551661,-300.0,0.00019261,2]
[390846699,1760178551682,-300.0,0.00019261,2]
[390846700,1760178551702,-300.0,0.00019261,2]
[390846701,1760178551726,-300.0,0.00019261,2]
[390846702,1760178551745,-500.0,0.000193,2]
[390846703,1760178551764,-500.128199,0.000193,2]
[390846704,1760178551784,-500.0,0.000193,2]
[390846705,1760178551803,-303.82076833,0.000193,2]
[390846706,1760178551822,-500.0,0.000193,2]
[390846707,1760178551842,-500.0,0.000193,2]
[390846708,1760178551860,-279.75802418,0.000193,2]
[390846709,1760178551957,-500.0,0.000193,2]
[390846710,1760178551992,-500.0,0.000193,2]
[390846711,1760178552012,-500.3923014,0.000193,2]
[390846712,1760178552032,-500.0,0.000193,2]
[390846713,1760178552051,-500.0,0.000193,2]
[390846714,1760178552070,-500.0,0.000193,2]
[390846715,1760178552089,-500.4582732,0.000193,2]
[390846716,1760178552107,-500.0,0.000193,2]
[390846717,1760178552126,-500.0,0.000193,2]
[390846718,1760178552145,-486.57230199,0.000193,2]
[390846719,1760178552164,-201.31478402,0.000193,2]
[390846720,1760178552183,-500.0,0.000193,2]
[390846721,1760178552203,-527.3885147,0.000193,2]
[390846722,1760178552225,-200.3281324,0.000193,2]
[390846723,1760178552244,-183.67583916,0.000193,2]
[390846724,1760178552263,-261.54958746,0.000193,2]
[390846725,1760178552284,-500.0,0.000193,2]
[390846726,1760178552304,-500.0,0.000193,2]
[390846727,1760178552324,-500.56618965,0.000193,2]
[390846728,1760178552343,-500.0,0.000193,2]
[390846729,1760178552363,-500.0,0.000193,2]
[390846730,1760178552382,-207.91827889,0.000193,2]
[390846731,1760178552401,-500.0,0.000193,2]
[390846732,1760178552422,-151.0,0.000193,2]
[390846733,1760178552441,-500.0,0.000193,2]
[390846734,1760178552460,-151.0,0.000193,2]
[390846735,1760178552484,-151.0,0.000193,2]
[390846736,1760178552503,-500.0,0.000193,2]
[390846737,1760178552522,-500.24115541,0.000193,2]
[390846738,1760178552541,-500.73542082,0.000193,2]
[390846739,1760178552560,-522.05049619,0.000193,2]
[390846740,1760178552579,-183.14814588,0.000193,2]
[390846741,1760178552598,-500.0,0.000193,2]
[390846742,1760178552617,-500.36814837,0.000193,2]
[390846743,1760178552637,-500.2607671,0.000193,2]
[390846744,1760178552660,-169.41773488,0.000193,2]
[390846745,1760178552679,-500.0,0.000193,2]
[390846746,1760178552700,-151.0,0.000193,2]
[390846747,1760178552720,-151.0,0.000193,2]
[390846748,1760178552740,-500.0,0.000193,2]
[390846749,1760178552761,-151.0,0.000193,2]
[390846750,1760178552781,-501.23144995,0.000193,2]
[390846751,1760178552800,-500.0,0.000193,2]
[390846752,1760178552818,-500.0,0.000193,2]
[390846753,1760178552837,-500.0,0.000193,2]
[390846754,1760178552857,-150.0,0.000193,2]
[390846755,1760178552875,-500.0,0.000193,2]
[390846756,1760178552895,-235.24,0.000193,2]
[390846757,1760178552915,-500.0,0.000193,2]
[390846758,1760178552934,-567.6838472,0.000193,2]
[390846759,1760178552953,-500.0,0.000193,2]
[390846760,1760178552975,-500.0,0.000193,2]
[390846761,1760178552994,-510.72499084,0.000193,2]
[390846762,1760178553013,-500.0,0.000193,2]
[390846763,1760178553032,-151.0,0.000193,2]
[390846764,1760178553050,-151.0,0.000193,2]
[390846765,1760178553068,-151.0,0.000193,2]
[390846766,1760178553088,-151.0,0.000193,2]
[390846767,1760178553108,-152.18375314,0.000193,2]
[390846768,1760178553128,-500.0,0.000193,2]
[390846769,1760178553148,-500.0,0.000193,2]
[390846770,1760178553167,-236.25480661,0.000193,2]
[390846771,1760178553187,-151.0,0.000193,2]
[390846772,1760178553294,-500.0,0.000193,2]
[390846773,1760178553313,-500.0,0.000193,2]
[390846774,1760178553332,-500.0,0.00019355,2]
[390846775,1760178553352,-151.0,0.00019355,2]
[390846776,1760178553371,-151.0,0.00019355,2]
[390846777,1760178553391,-151.0,0.00019355,2]
[390846778,1760178553411,-151.0,0.00019355,2]
[390846779,1760178553432,-500.0,0.00019355,2]
[390846780,1760178553453,-151.0,0.00019355,2]
[390846781,1760178553473,-291.83913607,0.00019355,2]
[390846782,1760178553492,-151.0,0.00019355,2]
[390846783,1760178553512,-151.0,0.00019355,2]
[390846784,1760178553531,-151.0,0.00019355,2]
[390846785,1760178553550,-151.0,0.00019355,2]
[390846786,1760178553569,-262.80567964,0.0001941,2]